[Event "Bergen Grand Prix 2019"]
[Site "Bergen"]
[Date "2019.11.15"]
[Round "1.12"]
[White "Lunde, Vidar"]
[Black "Bu, Knut Steinar"]
[Result "0-1"]
[ECO "A45"]
[WhiteElo "1051"]
[BlackElo "1321"]
[Annotator "NA RC"]
[PlyCount "110"]
[EventDate "2019.11.15"]
[EventType "swiss"]
[EventCountry "NOR"]
[SourceTitle "playchess.com"]
[Source "ChessBase"]
[SourceQuality "1"]
[TimeControl "40/5400:1800"]

1. d4 {[%emt 0:00:06]} Nf6 {[%emt 0:00:05]} 2. Nc3 {[%emt 0:00:29]} e6 {[%emt 0:00:10]} 3. Bd2 {[%emt 0:01:05]} d5 {[%emt 0:00:44]} 4. Nf3 {[%emt 0:00:39]} b6 {[%emt 0:00:55]} 5. e3 {[%emt 0:02:19]} Bb7 {[%emt 0:00:43]} 6. Be2 {[%emt 0:03:26]} Be7 {[%emt 0:00:16]} 7. O-O {[%emt 0:01:05]} O-O {[%emt 0:01:19]} 8. a4 {[%emt 0:04:45]} a5 {[%emt 0:01:51]} 9. b3 {[%emt 0:09:27]} Nbd7 {[%emt 0:02:44]} 10. Bd3 {[%emt 0:01:56]} Ne4 {[%emt 0:00:46]} 11. Be1 {[%emt 0:03:14]} Bb4 {[%emt 0:01:54]} 12. Ne2 {[%emt 0:04:35]} Bd6 {[%emt 0:03:19]} 13. c3 {[%emt 0:05:31]} c5 {[%emt 0:04:03]} 14. Bxe4 {[%emt 0:04:40]} dxe4 {[%emt 0:00:18]} 15. Nd2 {[%emt 0:04:37]} cxd4 {[%emt 0:04:18]} 16. cxd4 {[%emt 0:06:42]} Rc8 {[%emt 0:02:45]} 17. Nc4 {[%emt 0:00:48]} Bb8 {[%emt 0:01:23]} 18. Qb1 {[%emt 0:03:30]} Nf6 {[%emt 0:05:45]} 19. h3 {[%emt 0:01:10]} Nd7 {[%emt 0:02:11]} 20. Bc3 {[%emt 0:00:20]} Qg5 {[%emt 0:02:19]} 21. Rd1 {[%emt 0:02:45]} Bd5 {[%emt 0:01:38]} 22. Bd2 {[%emt 0:00:59]} Bxc4 {[%emt 0:01:28]} 23. bxc4 {[%emt 0:01:16]} Rxc4 {[%emt 0:00:09]} 24. Nf4 {[%emt 0:01:37]} Bxf4 {[%emt 0:03:42]} 25. exf4 {[%emt 0:01:01]} Qd5 {[%emt 0:01:16]} 26. Be3 {[%emt 0:00:31]} Rfc8 {[%emt 0:01:32]} 27. Qb2 {[%emt 0:01:57]} Rc2 {[%emt 0:06:10]} 28. Qb5 {[%emt 0:04:59]} Qxb5 {[%emt 0:03:58]} 29. axb5 {[%emt 0:00:22]} Rb2 {[%emt 0:00:10]} 30. Rdb1 {[%emt 0:01:51]} Rcc2 {[%emt 0:01:23]} 31. Rc1 Rxc1+ {[%emt 0:01:28]} 32. Rxc1 {[%emt 0:01:02]} f5 {[%emt 0:03:16]} 33. Rc7 {[%emt 0:00:26]} Nf6 {[%emt 0:01:02]} 34. Rc6 {[%emt 0:00:23]} Nd5 {[%emt 0:00:21]} 35. Rxe6 {[%emt 0:00:17]} Rxb5 {[%emt 0:00:31]} 36. Re5 {[%emt 0:00:18]} Rb1+ {[%emt 0:00:56]} 37. Kh2 {[%emt 0:00:13]} Nxe3 {[%emt 0:01:06]} 38. fxe3 {[%emt 0:00:17]} g6 {[%emt 0:00:13]} 39. Kg3 {[%emt 0:00:51]} Kf7 {[%emt 0:00:59]} 40. d5 {[%emt 0:00:26]} Rb5 {[%emt 0:01:46]} 41. d6 {[%emt 0:08:09]} Rxe5 {[%emt 0:00:17]} 42. fxe5 {[%emt 0:00:14]} Ke6 {[%emt 0:00:13]} 43. Kf4 {[%emt 0:00:39]} a4 {[%emt 0:00:49]} 44. Kg5 {[%emt 0:01:03]} a3 {[%emt 0:00:23]} 45. d7 {[%emt 0:00:08]} Kxd7 {[%emt 0:00:08]} 46. Kf6 {[%emt 0:00:11]} Ke8 {[%emt 0:00:03]} 47. Kg7 {[%emt 0:09:14]} a2 {[%emt 0:00:09]} 48. Kxh7 {[%emt 0:00:17]} a1=Q {[%emt 0:00:47]} 49. Kxg6 {[%emt 0:00:55]} Qxe5 {[%emt 0:00:11]} 50. g4 {[%emt 0:00:55]} fxg4 {[%emt 0:00:14]} 51. hxg4 {[%emt 0:00:15]} Kf8 {[%emt 0:01:04]} 52. g5 {[%emt 0:00:11]} Kg8 {[%emt 0:00:45]} 53. Kh6 {[%emt 0:01:00]} Qf5 {[%emt 0:00:50]} 54. Kh5 {[%emt 0:00:38]} b5 {[%emt 0:00:43]} 55. Kh6 {[%emt 0:00:52]} Qh7# {[%emt 0:00:53]} 0-1

[Event "Bergen Grand Prix 2019"]
[Site "Bergen"]
[Date "2019.11.16"]
[Round "2.6"]
[White "Gronnestad, Anita"]
[Black "Kopperud, Vidar Aleksander"]
[Result "1-0"]
[ECO "E00"]
[WhiteElo "1952"]
[BlackElo "1770"]
[Annotator "NA RC"]
[PlyCount "99"]
[EventDate "2019.11.15"]
[EventType "swiss"]
[EventCountry "NOR"]
[SourceTitle "playchess.com"]
[Source "ChessBase"]
[SourceQuality "1"]
[TimeControl "40/5400:1800"]

{[%evp 8,99,21,31,26,8,16,9,21,28,31,10,30,8,39,14,65,64,68,45,88,56,83,90,72,78,66,20,34,20,151,172,175,180,185,182,297,317,319,221,241,229,237,239,239,235,224,247,237,212,247,248,196,236,208,233,266,290,270,293,269,32767,230,200,332,399,343,32767,345,473,389,460,32767,32767,32767,32767,455,469,453,511,776,842,701,800,931,1164,787,1668,928,1567,1054,1335,29980,29981]} 1. d4 {[%emt 0:00:03]} Nf6 {[%emt 0:00:09]} 2. c4 {[%emt 0:00:16]} e6 {[%emt 0:00:08]} 3. g3 {[%emt 0:00:05]} Bb4+ {[%emt 0:00:39]} 4. Bd2 {[%emt 0:00:11]} Qe7 {[%emt 0:00:15]} 5. Bg2 {[%emt 0:00:10]} O-O {[%emt 0:06:02]} 6. a3 {[%emt 0:00:44] E00: Catalan Bogo-Indian (3 g3 Bb4+)} (6. Nf3 b6 7. Ne5 d5 8. O-O Bxd2 9. Nxd2 Bb7 10. cxd5 exd5 11. Rc1 c5 12. Qa4 Rc8 13. Rfe1 Na6 14. e4 {½-½ (37) Bachmann,A (2646)-Granda Zuniga,J (2658) Buenos Aires 2017}) 6... Bxd2+ {[%emt 0:02:04]} 7. Nxd2 {[%emt 0:00:08]} d6 {[%emt 0:04:22]} 8. e3 {[%emt 0:02:02]} Nbd7 $146 {[%emt 0:03:27]} ({Predecessor:} 8... e5 9. Ne2 c6 10. O-O Bg4 11. Nf3 e4 12. Nd2 d5 13. h3 Bf5 {0-1 (63) Van Putten,H (2271)-Wempe,J (2298) Netherlands 2008}) 9. Qc2 {[%emt 0:01:45]} a5 {[%emt 0:04:31]} 10. Ne2 {[%emt 0:01:09]} e5 {[%emt 0:07:27]} 11. O-O {[%emt 0:01:57]} Ra7 {[%emt 0:10:12]} 12. Nc3 {[%emt 0:02:15]} c6 {[%emt 0:03:10]} 13. b4 {[%emt 0:04:26]} Nb6 {[%emt 0:04:04]} 14. b5 {[%emt 0:07:56]} Bd7 {[%emt 0:02:45]} 15. Rab1 {[%emt 0:04:35]} c5 {[%emt 0:03:15]} 16. Rfe1 {[%emt 0:01:56]} Be6 {[%emt 0:02:53]} 17. d5 {[%emt 0:05:00]} Bg4 {[%emt 0:02:55]} 18. h3 {[%emt 0:03:39]} Bh5 {[%emt 0:01:04] [#]} (18... Bd7 $11 {remains equal.}) 19. f4 $1 {[%emt 0:00:39]} h6 {[%emt 0:10:32] [#]} 20. f5 $1 {[%emt 0:00:45]} Nbd7 {[%emt 0:03:37]} 21. g4 {[%emt 0:01:16]} Bxg4 {[%emt 0:00:12]} (21... Nxg4 $142 22. hxg4 Bxg4) 22. hxg4 {[%emt 0:00:08]} Nxg4 {[%emt 0:00:10]} 23. Nf3 {[%emt 0:00:48]} b6 {[%emt 0:01:49]} 24. Bh3 {[%emt 0:00:45]} Ngf6 {[%emt 0:01:41]} 25. Ne4 {[%emt 0:01:26]} Nxe4 {[%emt 0:00:43]} 26. Qxe4 {[%emt 0:00:08]} Nf6 {[%emt 0:00:32]} 27. Qh4 {[%emt 0:00:22]} e4 {[%emt 0:01:11]} 28. Nh2 {[%emt 0:01:26]} Nxd5 {[%emt 0:01:12]} 29. Qxe7 {[%emt 0:02:30]} Nxe7 {[%emt 0:00:02]} 30. Rbd1 {[%emt 0:00:31]} Rd8 {[%emt 0:00:53]} 31. Ng4 {[%emt 0:00:59]} Nxf5 {[%emt 0:02:23] [#]} 32. Nf6+ $1 {[%emt 0:01:44]} gxf6 {[%emt 0:00:11]} 33. Bxf5 {[%emt 0:01:48]} Re7 {[%emt 0:00:24]} 34. Rd5 {[%emt 0:01:00]} Re5 {[%emt 0:01:31]} 35. Red1 {[%emt 0:00:35]} Rxd5 {[%emt 0:00:42]} (35... Kf8 $142 36. Rxe5 fxe5 37. Bxe4 Ke7) 36. Rxd5 {[%emt 0:00:11]} Kf8 {[%emt 0:00:39]} 37. Kf2 {[%emt 0:00:25]} Ke7 {[%emt 0:00:16]} 38. Bxe4 {[%emt 0:00:48]} Rh8 {[%emt 0:01:00]} 39. Rh5 {[%emt 0:00:43]} Ke6 {[%emt 0:00:12]} 40. Bd5+ {[%emt 0:00:27]} Ke7 {[%emt 0:00:02]} 41. Kf3 {[%emt 0:32:28]} Kf8 {[%emt 0:04:10]} 42. Kf4 {[%emt 0:00:00]} Kg7 {[%emt 0:00:33]} 43. Rh3 {[%emt 0:00:00]} Re8 {[%emt 0:01:57]} (43... h5 $142 44. Bf3 h4) 44. Rg3+ {[%emt 0:00:00]} Kf8 {[%emt 0:01:37]} 45. Kf5 {[%emt 0:00:00]} Ke7 {[%emt 0:02:06]} 46. Rg7 {[%emt 0:00:00]} Rf8 {[%emt 0:00:26]} 47. Rh7 {[%emt 0:00:00]} h5 {[%emt 0:00:40]} 48. Rxh5 {[%emt 0:00:00]} Rg8 {[%emt 0:00:24]} 49. Rh7 {[%emt 0:00:00]} Rf8 {[%emt 0:03:21]} 50. a4 {[%emt 0:00:00]} 1-0

[Event "Bergen Grand Prix 2019"]
[Site "Bergen"]
[Date "2019.11.16"]
[Round "2.7"]
[White "Rasmussen, Jonas H"]
[Black "Solheim, Per Otto"]
[Result "1/2-1/2"]
[ECO "D11"]
[WhiteElo "1951"]
[BlackElo "1752"]
[Annotator "NA RC"]
[PlyCount "80"]
[EventDate "2019.11.15"]
[EventType "swiss"]
[EventCountry "NOR"]
[SourceTitle "playchess.com"]
[Source "ChessBase"]
[SourceQuality "1"]
[TimeControl "40/5400:1800"]

{[%evp 8,75,16,13,7,0,39,22,62,15,18,6,21,25,15,16,22,-1,6,-16,16,-19,-7,-23,-6,-88,-96,-92,-102,-98,-98,-127,-118,-160,-138,-171,-135,-145,-141,-209,-210,-229,-159,-258,-231,-277,-143,-147,-133,-89,-87,-565,-95,-106,-97,-454,-773,-427,-609,-526,-87,32767,-40,-38,32767,32767,32767,32767,32767,0]} 1. d4 {[%emt 0:00:02]} d5 {[%emt 0:00:33]} 2. Nf3 {[%emt 0:00:07]} Nf6 {[%emt 0:00:42]} 3. g3 {[%emt 0:00:12]} c6 {[%emt 0:00:55]} 4. Bg2 {[%emt 0:00:17]} Bf5 {[%emt 0:00:39]} 5. O-O {[%emt 0:00:22]} e6 {[%emt 0:00:18]} 6. c4 {[%emt 0:01:57]} Bd6 {[%emt 0:01:14]} 7. Nc3 {[%emt 0:01:32]} Nbd7 {[%emt 0:00:56]} 8. Nd2 {[%emt 0:02:16] D11: Slav Defence: 3 Nf3 sidelines and 3...Nf6 4 e3 Bg4} O-O {[%emt 0:00:29]} 9. b3 {[%emt 0:02:17]} (9. e4 dxe4 10. Ndxe4 Nxe4 11. Nxe4 Bxe4 12. Bxe4 Nf6 13. Bf3 Qa5 14. Qb3 Qb6 15. Qc2 c5 16. dxc5 Bxc5 {½-½ (72) Zhou,J (2620)-Li,C (2758) Wuxi 2016}) 9... Rb8 $146 {[%emt 0:05:13]} ({Predecessor:} 9... Bg6 10. Bb2 Be7 11. a3 Qc7 12. Rc1 Rad8 13. cxd5 exd5 14. Nxd5 Nxd5 15. Bxd5 Bf6 {1-0 (43) Ustianovich,N (2258)-Shast,V (2139) Ukraine 2000}) 10. Bb2 {[%emt 0:04:08]} b5 {[%emt 0:01:52]} 11. c5 {[%emt 0:02:29]} Bc7 {[%emt 0:00:03]} 12. b4 {[%emt 0:01:18]} e5 {[%emt 0:01:23]} 13. Nb3 {[%emt 0:08:34]} e4 {[%emt 0:02:09]} 14. e3 {[%emt 0:04:40]} Qe7 {[%emt 0:03:58]} 15. Ne2 {[%emt 0:02:00]} g5 {[%emt 0:07:34]} 16. Bc3 {[%emt 0:03:31]} (16. a4 $11) 16... Qe6 {[%emt 0:02:15]} 17. a4 {[%emt 0:02:18] [#]} a6 $1 {[%emt 0:03:49]} 18. axb5 {[%emt 0:01:02]} axb5 {[%emt 0:00:01]} 19. Ra7 {[%emt 0:04:02]} Rbc8 {[%emt 0:00:09]} 20. Qd2 {[%emt 0:02:20]} (20. Nd2 $142) 20... Bh3 {[%emt 0:12:36]} 21. Rfa1 {[%emt 0:04:44]} Bxg2 {[%emt 0:00:10]} 22. Kxg2 {[%emt 0:00:06]} h5 {[%emt 0:04:59]} 23. Ng1 {[%emt 0:02:51]} (23. Na5 $17) 23... h4 {[%emt 0:05:12]} 24. Qe2 {[%emt 0:05:41]} Kg7 {[%emt 0:05:29]} 25. Nh3 {[%emt 0:06:12]} (25. Be1 $17) 25... Qf5 {[%emt 0:06:09]} 26. Rh1 {[%emt 0:03:37]} g4 {[%emt 0:19:10]} 27. Nf4 {[%emt 0:00:40]} h3+ {[%emt 0:00:01]} 28. Kf1 {[%emt 0:00:24]} Bxf4 {[%emt 0:00:06]} 29. exf4 $2 {[%emt 0:00:35] [#]} (29. gxf4 $15 Ra8 30. Ra5) 29... Ra8 $2 {[%emt 0:00:01]} (29... e3 $1 $19 {[%mdl 512] is more deadly.} 30. Nc1 (30. Qxe3 Rce8) 30... Ra8 31. Rxd7 Nxd7) 30. Rxa8 {[%emt 0:00:54]} Rxa8 {[%emt 0:00:01]} 31. Na5 $2 {[%emt 0:00:20] [#]} (31. Qe3 $17) 31... e3 $1 {[%emt 0:00:51]} 32. fxe3 {[%emt 0:00:42]} Qb1+ {[%emt 0:00:07]} 33. Be1 {[%emt 0:01:44]} Qe4 $2 {[%emt 0:00:03]} (33... Nf8 $19 34. Kg1 Ra6) 34. Rg1 {[%emt 0:00:40] [#]} Qe6 {[%emt 0:00:14]} (34... Nf8 $1 $17 35. Kf2 (35. Nxc6 $2 Ra1 $19) 35... Ng6) 35. Qd3 {[%emt 0:01:09]} Ne4 {[%emt 0:00:01]} 36. Ke2 {[%emt 0:01:23]} f5 {[%emt 0:00:01]} 37. Bd2 {[%emt 0:01:44]} Kg6 {[%emt 0:00:01]} 38. Bc3 $11 {[%emt 0:02:59]} Ra6 {[%emt 0:00:04]} 39. Ra1 {[%emt 0:02:34]} Ndf6 {[%emt 0:00:05]} 40. Be1 {[%emt 0:00:58]} Qe8 {[%emt 0:00:13]} 1/2-1/2

[Event "Bergen Grand Prix 2019"]
[Site "Bergen"]
[Date "2019.11.16"]
[Round "2.8"]
[White "Lie, Bjorn"]
[Black "Jacobsen, Hans-Henry"]
[Result "0-1"]
[ECO "A57"]
[WhiteElo "1456"]
[BlackElo "1646"]
[Annotator "NA RC"]
[PlyCount "60"]
[EventDate "2019.11.15"]
[EventType "swiss"]
[EventCountry "NOR"]
[SourceTitle "playchess.com"]
[Source "ChessBase"]
[SourceQuality "1"]
[TimeControl "40/5400:1800"]

1. d4 {[%emt 0:00:02]} Nf6 {[%emt 0:00:02]} 2. c4 {[%emt 0:00:14]} c5 {[%emt 0:00:06]} 3. d5 {[%emt 0:00:08]} b5 {[%emt 0:00:05]} 4. cxb5 {[%emt 0:00:07]} a6 {[%emt 0:00:09]} 5. e3 {[%emt 0:00:12]} g6 {[%emt 0:00:41]} 6. Nc3 {[%emt 0:01:07]} Bg7 {[%emt 0:00:10]} 7. Nf3 {[%emt 0:01:34]} d6 {[%emt 0:00:26]} 8. Qc2 {[%emt 0:03:59]} O-O {[%emt 0:00:33]} 9. Be2 {[%emt 0:03:06]} Nbd7 {[%emt 0:00:26]} 10. O-O {[%emt 0:02:18]} Ng4 {[%emt 0:00:27]} 11. e4 {[%emt 0:07:09]} Nge5 {[%emt 0:01:05]} 12. Nd2 {[%emt 0:11:33]} Nb6 {[%emt 0:00:10]} 13. f4 {[%emt 0:07:39]} Ned7 {[%emt 0:11:38]} 14. Nf3 {[%emt 0:05:39]} axb5 {[%emt 0:00:22]} 15. Bxb5 {[%emt 0:03:03]} Ba6 {[%emt 0:00:08]} 16. a4 {[%emt 0:04:48]} Bxc3 {[%emt 0:08:48]} 17. Bxa6 {[%emt 0:00:19]} Bg7 {[%emt 0:02:42]} 18. Bb5 {[%emt 0:00:12]} Qc7 {[%emt 0:03:03]} 19. Bd2 {[%emt 0:04:43]} Nc8 {[%emt 0:02:58]} 20. Bc6 {[%emt 0:02:27]} Rb8 {[%emt 0:00:44]} 21. Bc3 {[%emt 0:00:14]} Na7 {[%emt 0:00:14]} 22. Bxg7 {[%emt 0:00:43]} Kxg7 {[%emt 0:00:07]} 23. Qc3+ {[%emt 0:00:18]} Kg8 {[%emt 0:00:01]} 24. Bxd7 {[%emt 0:00:38]} Qxd7 {[%emt 0:00:07]} 25. Rfb1 {[%emt 0:00:19]} Rb4 {[%emt 0:00:54]} 26. Nd2 {[%emt 0:01:52]} Rxa4 {[%emt 0:01:11]} 27. Rxa4 {[%emt 0:00:36]} Qxa4 {[%emt 0:00:07]} 28. Qa3 {[%emt 0:00:18]} Qd4+ {[%emt 0:01:11]} 29. Kf1 {[%emt 0:00:39]} Qxd2 {[%emt 0:00:10]} 30. Qxa7 {[%emt 0:00:13]} Qd3+ {[%emt 0:00:06]} 0-1

[Event "Bergen Grand Prix 2019"]
[Site "Bergen"]
[Date "2019.11.16"]
[Round "2.9"]
[White "Sorhus, Jostein"]
[Black "Hoyforsslett, Gard Rye"]
[Result "1-0"]
[ECO "A21"]
[WhiteElo "1630"]
[BlackElo "1531"]
[Annotator "NA RC"]
[PlyCount "103"]
[EventDate "2019.11.15"]
[EventType "swiss"]
[EventCountry "NOR"]
[SourceTitle "playchess.com"]
[Source "ChessBase"]
[SourceQuality "1"]
[TimeControl "40/5400:1800"]

1. c4 {[%emt 0:00:03]} e5 {[%emt 0:10:08]} 2. g3 {[%emt 0:00:15]} f5 {[%emt 0:00:34]} 3. d3 {[%emt 0:00:37]} Nf6 {[%emt 0:00:11]} 4. Bg5 {[%emt 0:01:03]} g6 {[%emt 0:01:13]} 5. Bg2 {[%emt 0:00:23]} Bg7 {[%emt 0:00:12]} 6. Nc3 {[%emt 0:00:16]} O-O {[%emt 0:01:16]} 7. Nf3 {[%emt 0:02:04]} d6 {[%emt 0:00:05]} 8. O-O {[%emt 0:05:56]} Nbd7 {[%emt 0:00:01]} 9. Rc1 {[%emt 0:02:43]} Qe8 {[%emt 0:01:13]} 10. Nd2 {[%emt 0:03:14]} Rb8 {[%emt 0:01:17]} 11. Nb5 {[%emt 0:05:02]} Qd8 {[%emt 0:02:32]} 12. Nxa7 {[%emt 0:02:34]} Ra8 {[%emt 0:00:04]} 13. Nxc8 {[%emt 0:00:34]} Qxc8 {[%emt 0:00:01]} 14. a3 {[%emt 0:05:25]} h6 {[%emt 0:04:17]} 15. Bxf6 {[%emt 0:00:27]} Nxf6 {[%emt 0:00:15]} 16. Qb3 {[%emt 0:01:30]} c6 {[%emt 0:02:31]} 17. e3 {[%emt 0:02:22]} Rb8 {[%emt 0:00:49]} 18. f4 {[%emt 0:05:39]} exf4 {[%emt 0:02:00]} 19. exf4 {[%emt 0:02:52]} Ng4 {[%emt 0:02:23]} 20. Nf3 {[%emt 0:02:18]} Ne3 {[%emt 0:01:22]} 21. Rfe1 {[%emt 0:00:52]} Nxg2 {[%emt 0:00:13]} 22. Kxg2 {[%emt 0:00:36]} Re8 {[%emt 0:00:38]} 23. Rxe8+ {[%emt 0:00:47]} Qxe8 {[%emt 0:00:02]} 24. Re1 {[%emt 0:00:13]} Qd7 {[%emt 0:00:09]} 25. Qc2 {[%emt 0:05:27]} b5 {[%emt 0:01:56]} 26. Kh3 {[%emt 0:02:28]} bxc4 {[%emt 0:01:35]} 27. Qxc4+ {[%emt 0:01:58]} d5 {[%emt 0:00:16]} 28. Qc5 {[%emt 0:01:08]} Rb5 {[%emt 0:21:35]} 29. Qe3 {[%emt 0:15:14]} Rxb2 {[%emt 0:04:27]} 30. d4 {[%emt 0:00:33]} Rb7 {[%emt 0:12:29]} 31. Ne5 {[%emt 0:01:22]} Bxe5 {[%emt 0:01:11]} 32. Qxe5 {[%emt 0:00:49]} Ra7 {[%emt 0:02:57]} 33. Qf6 {[%emt 0:01:06]} Qf7 {[%emt 0:01:51]} 34. Qxc6 {[%emt 0:04:47]} Rxa3 {[%emt 0:00:11]} 35. Re6 {[%emt 0:01:17]} Kg7 {[%emt 0:01:58]} 36. Qxd5 {[%emt 0:01:56]} Ra7 {[%emt 0:00:36]} 37. Qe5+ {[%emt 0:00:26]} Kf8 {[%emt 0:00:36]} 38. Qh8+ {[%emt 0:00:46]} Qg8 {[%emt 0:00:05]} 39. Re8+ {[%emt 0:00:15]} Kxe8 {[%emt 0:00:10]} 40. Qxg8+ {[%emt 0:00:08]} Ke7 {[%emt 0:00:06]} 41. Qg7+ {[%emt 0:30:07]} Ke6 {[%emt 0:30:04]} 42. Qxa7 {[%emt 0:00:08]} g5 {[%emt 0:00:04]} 43. Qb7 {[%emt 0:01:13]} g4+ {[%emt 0:00:10]} 44. Kh4 {[%emt 0:00:13]} Kf6 {[%emt 0:00:12]} 45. Qc6+ {[%emt 0:00:13]} Kg7 {[%emt 0:00:04]} 46. Qe8 {[%emt 0:00:00]} Kf6 {[%emt 0:00:00]} 47. d5 {[%emt 0:00:00]} h5 {[%emt 0:00:00]} 48. d6 {[%emt 0:00:00]} Kg7 {[%emt 0:00:00]} 49. d7 {[%emt 0:00:00]} Kh6 {[%emt 0:00:00]} 50. d8=Q {[%emt 0:00:00]} Kh7 {[%emt 0:00:00]} 51. Qg8+ {[%emt 0:00:00]} Kh6 {[%emt 0:00:00]} 52. Qdg5# {[%emt 0:00:00]} 1-0

[Event "Bergen Grand Prix 2019"]
[Site "Bergen"]
[Date "2019.11.16"]
[Round "2.10"]
[White "Sivertsen, Jarle"]
[Black "Vagenes, Anders Hjollo"]
[Result "1-0"]
[ECO "B87"]
[WhiteElo "1597"]
[BlackElo "1439"]
[Annotator "NA RC"]
[PlyCount "47"]
[EventDate "2019.11.15"]
[EventType "swiss"]
[EventCountry "NOR"]
[SourceTitle "playchess.com"]
[Source "ChessBase"]
[SourceQuality "1"]
[TimeControl "40/5400:1800"]

1. e4 {[%emt 0:00:04]} c5 {[%emt 0:00:04]} 2. Nf3 {[%emt 0:01:16]} d6 {[%emt 0:00:07]} 3. d4 {[%emt 0:01:12]} cxd4 {[%emt 0:00:09]} 4. Nxd4 {[%emt 0:00:01]} Nf6 {[%emt 0:00:13]} 5. Nc3 {[%emt 0:00:05]} a6 {[%emt 0:00:04]} 6. Bc4 {[%emt 0:02:49]} e6 {[%emt 0:00:41]} 7. O-O {[%emt 0:00:34]} b5 {[%emt 0:03:10]} 8. Bb3 {[%emt 0:00:05]} b4 {[%emt 0:03:30]} 9. Na4 {[%emt 0:00:05]} Nxe4 {[%emt 0:01:32]} 10. Re1 {[%emt 0:00:37]} d5 {[%emt 0:06:05]} 11. Qf3 {[%emt 0:05:27]} Be7 {[%emt 0:02:37]} 12. Rxe4 {[%emt 0:02:16]} dxe4 {[%emt 0:01:16]} 13. Qxe4 {[%emt 0:00:11]} Ra7 {[%emt 0:01:41]} 14. Be3 {[%emt 0:09:40]} Rd7 {[%emt 0:09:28]} 15. c3 {[%emt 0:03:48]} Bb7 {[%emt 0:00:41]} 16. Qg4 {[%emt 0:01:19]} Kf8 {[%emt 0:09:23]} 17. Bxe6 {[%emt 0:04:05]} Rd6 {[%emt 0:03:57]} 18. Nf5 {[%emt 0:02:07]} fxe6 {[%emt 0:08:02]} 19. Qxg7+ {[%emt 0:00:45]} Ke8 {[%emt 0:00:36]} 20. Qxh8+ {[%emt 0:00:55]} Bf8 {[%emt 0:03:43]} 21. Nxd6+ {[%emt 0:00:13]} Qxd6 {[%emt 0:00:28]} 22. Bc5 {[%emt 0:00:20]} Qd5 {[%emt 0:02:21]} 23. Qxf8+ {[%emt 0:00:07]} Kd7 {[%emt 0:00:14]} 24. Nb6+ {[%emt 0:00:46]} 1-0

[Event "Bergen Grand Prix 2019"]
[Site "Bergen"]
[Date "2019.11.16"]
[Round "2.11"]
[White "Holten, Terje"]
[Black "Tenfjord Engelsen, Teodor"]
[Result "0-1"]
[ECO "C59"]
[WhiteElo "1155"]
[BlackElo "1349"]
[Annotator "NA RC"]
[PlyCount "36"]
[EventDate "2019.11.15"]
[EventType "swiss"]
[EventCountry "NOR"]
[SourceTitle "playchess.com"]
[Source "ChessBase"]
[SourceQuality "1"]
[TimeControl "40/5400:1800"]

1. e4 {[%emt 0:00:03]} e5 {[%emt 0:00:04]} 2. Nf3 {[%emt 0:00:06]} Nc6 {[%emt 0:00:06]} 3. Bc4 {[%emt 0:00:06]} Nf6 {[%emt 0:00:08]} 4. Ng5 {[%emt 0:00:19]} d5 {[%emt 0:00:06]} 5. exd5 {[%emt 0:00:05]} Na5 {[%emt 0:00:06]} 6. Bb5+ {[%emt 0:00:12]} c6 {[%emt 0:00:09]} 7. dxc6 {[%emt 0:00:49]} bxc6 {[%emt 0:00:06]} 8. Be2 {[%emt 0:00:58]} h6 {[%emt 0:00:07]} 9. Nf3 {[%emt 0:00:46]} e4 {[%emt 0:00:07]} 10. Ne5 {[%emt 0:01:47]} Bc5 {[%emt 0:00:12]} 11. O-O {[%emt 0:04:46]} Qd4 {[%emt 0:05:44]} 12. Ng4 {[%emt 0:03:22]} Bxg4 {[%emt 0:00:19]} 13. Bxg4 {[%emt 0:00:13]} e3 {[%emt 0:00:17]} 14. Qe2 {[%emt 0:03:56]} Qxg4 {[%emt 0:04:27]} 15. f3 {[%emt 0:00:54]} Qe6 {[%emt 0:00:34]} 16. c3 {[%emt 0:00:34]} exd2+ {[%emt 0:00:24]} 17. Qf2 {[%emt 0:01:02]} Bxf2+ {[%emt 0:00:00]} 18. Rxf2 {[%emt 0:00:00]} Qe1+ {[%emt 0:00:41]} 0-1

[Event "Bergen Grand Prix 2019"]
[Site "Bergen"]
[Date "2019.11.16"]
[Round "2.12"]
[White "Bu, Knut Steinar"]
[Black "Wallevik, Karl"]
[Result "0-1"]
[ECO "C77"]
[WhiteElo "1321"]
[BlackElo "1186"]
[Annotator "NA RC"]
[PlyCount "88"]
[EventDate "2019.11.15"]
[EventType "swiss"]
[EventCountry "NOR"]
[SourceTitle "playchess.com"]
[Source "ChessBase"]
[SourceQuality "1"]
[TimeControl "40/5400:1800"]

1. e4 {[%emt 0:00:02]} e5 {[%emt 0:00:06]} 2. Nf3 {[%emt 0:00:05]} Nc6 {[%emt 0:00:06]} 3. Bb5 {[%emt 0:00:15]} a6 {[%emt 0:00:12]} 4. Ba4 {[%emt 0:00:04]} Nf6 {[%emt 0:00:11]} 5. d3 {[%emt 0:00:05]} b5 {[%emt 0:00:42]} 6. Bb3 {[%emt 0:00:05]} Be7 {[%emt 0:01:14]} 7. c3 {[%emt 0:00:21]} d5 {[%emt 0:03:05]} 8. exd5 {[%emt 0:02:22]} Nxd5 {[%emt 0:00:10]} 9. h3 {[%emt 0:00:19]} Bb7 {[%emt 0:01:08]} 10. O-O {[%emt 0:05:24]} Qd6 {[%emt 0:05:07]} 11. Nbd2 {[%emt 0:01:50]} O-O-O {[%emt 0:00:37]} 12. Ne4 {[%emt 0:00:35]} Qg6 {[%emt 0:00:46]} 13. Bc2 {[%emt 0:02:25]} h6 {[%emt 0:00:32]} 14. Ng3 {[%emt 0:00:31]} Qf6 {[%emt 0:02:50]} 15. d4 {[%emt 0:04:36]} exd4 {[%emt 0:03:41]} 16. Ne4 {[%emt 0:06:00]} Qe6 {[%emt 0:01:38]} 17. Ng3 {[%emt 0:03:14]} g6 {[%emt 0:05:03]} 18. Nxd4 {[%emt 0:01:16]} Nxd4 {[%emt 0:02:51]} 19. Qxd4 {[%emt 0:00:27]} Nf6 {[%emt 0:04:46]} 20. Qe3 {[%emt 0:06:18]} Qc6 {[%emt 0:01:53]} 21. Ne4 {[%emt 0:03:56]} Nxe4 {[%emt 0:04:04]} 22. Bxe4 {[%emt 0:00:28]} Qxe4 {[%emt 0:00:16]} 23. Qxe4 {[%emt 0:00:13]} Bxe4 {[%emt 0:00:06]} 24. Re1 {[%emt 0:00:06]} f5 {[%emt 0:00:07]} 25. f3 {[%emt 0:00:08]} Bc5+ {[%emt 0:00:10]} 26. Be3 {[%emt 0:00:59]} Bxe3+ {[%emt 0:00:15]} 27. Rxe3 {[%emt 0:00:03]} Bd5 {[%emt 0:02:18]} 28. a3 {[%emt 0:01:55]} Rhe8 {[%emt 0:00:21]} 29. Rae1 {[%emt 0:00:13]} Rxe3 {[%emt 0:00:23]} 30. Rxe3 {[%emt 0:00:15]} Bc4 {[%emt 0:00:11]} 31. Re7 {[%emt 0:03:12]} Rd7 {[%emt 0:01:57]} 32. Rxd7 {[%emt 0:00:44]} Kxd7 {[%emt 0:00:07]} 33. Kf2 {[%emt 0:00:05]} f4 {[%emt 0:00:24]} 34. g3 {[%emt 0:00:20]} fxg3+ {[%emt 0:00:42]} 35. Kxg3 {[%emt 0:00:08]} Kd6 {[%emt 0:00:58]} 36. Kf4 {[%emt 0:00:44]} Kd5 {[%emt 0:00:29]} 37. h4 {[%emt 0:00:36]} a5 {[%emt 0:01:56]} 38. b4 {[%emt 0:00:24]} a4 {[%emt 0:01:31]} 39. Ke3 {[%emt 0:03:35]} g5 {[%emt 0:02:07]} 40. hxg5 {[%emt 0:00:27]} hxg5 {[%emt 0:00:27]} 41. f4 {[%emt 0:30:41]} gxf4+ {[%emt 0:30:36]} 42. Kxf4 {[%emt 0:00:15]} Bd3 {[%emt 0:00:08]} 43. Ke3 {[%emt 0:00:19]} Kc4 {[%emt 0:00:08]} 44. Kd2 {[%emt 0:00:10]} Bf5 {[%emt 0:00:41]} 0-1